bitfinex/quotes_SOLUSD_20251128
["timestamp","ask_amount","ask_price","bid_price","bid_amount"]
[1764373358480,7.97900116,137.76,137.75,61.4]
[1764373360091,7.97900116,137.76,137.75,64.94767758]
[1764373362682,7.97900116,137.76,137.75,63.66869634]
[1764373366913,0.72,137.76,137.75,63.66869634]
[1764373369089,7.97900116,137.76,137.75,61.4]
[1764373369713,26.12437725,137.76,137.75,61.4]
[1764373370297,18.86537609,137.76,137.75,63.66869634]
[1764373370499,26.12437725,137.76,137.75,63.66869634]
[1764373378751,18.86537609,137.76,137.75,63.66869634]
[1764373379112,26.12437725,137.76,137.75,63.66869634]
[1764373383532,0.72,137.76,137.75,63.66869634]
[1764373385621,0.7,137.77,137.75,63.66869634]
[1764373385815,0.7,137.77,137.76,2.26869634]
[1764373386217,7.95847426,137.77,137.76,2.26869634]
[1764373386534,29.77427617,137.77,137.76,2.26869634]
[1764373389842,29.77427617,137.77,137.75,63.66869634]
[1764373390014,0.7,137.76,137.75,63.66869634]
[1764373390215,7.95900116,137.76,137.75,63.66869634]
[1764373390739,7.95900116,137.76,137.75,61.4]
[1764373399442,21.81580191,137.77,137.75,63.66869634]
[1764373399644,4.49274532,137.8,137.76,2.26869634]
[1764373399846,3.79274532,137.8,137.78,2.26869634]
[1764373400052,0.7,137.8,137.78,2.26869634]
[1764373400349,22.51262951,137.8,137.78,2.26869634]
[1764373400548,29.76963595,137.8,137.78,2.26869634]
[1764373400929,29.76963595,137.8,137.79,2.26869634]
[1764373402952,29.76963595,137.8,137.77,64.6]
[1764373403452,0.72,137.79,137.77,64.6]
[1764373404626,7.97700644,137.8,137.77,64.6]
[1764373404853,7.25700644,137.8,137.77,66.86869634]
[1764373405154,0.72,137.79,137.77,66.86869634]
[1764373405331,0.72,137.79,137.77,64.6]
[1764373405526,7.25700644,137.8,137.77,64.6]
[1764373405730,0.72,137.79,137.77,64.6]
[1764373408950,7.97700644,137.8,137.77,64.6]
[1764373409145,0.72,137.79,137.77,64.6]
[1764373409349,7.97700644,137.8,137.77,64.6]
[1764373409542,0.72,137.79,137.77,64.6]
[1764373410257,0.72,137.79,137.77,71.8584456]
[1764373410853,0.72,137.8,137.77,71.8584456]
[1764373411051,0.72,137.8,137.77,74.12714194]
[1764373411447,0.72,137.81,137.78,2.26869634]
[1764373411850,0.72,137.81,137.77,74.12714194]
[1764373412358,0.72,137.81,137.77,71.8584456]
[1764373412738,0.72,137.81,137.77,74.12714194]
[1764373412939,0.72,137.81,137.77,92.27332761]
[1764373418173,0.66,137.82,137.78,2.26869634]
[1764373418347,0.66,137.82,137.79,3.18]
[1764373419668,0.66,137.82,137.8,7.25689404]
[1764373419851,0.2,137.83,137.8,7.25689404]
[1764373420038,0.86,137.83,137.8,68.65689404]
[1764373420237,0.2,137.83,137.8,68.65689404]
[1764373420441,0.66,137.82,137.8,68.65689404]
[1764373429273,0.66,137.82,137.8,61.4]
[1764373429570,4.20202611,137.82,137.8,61.4]
[1764373430072,0.66,137.81,137.8,61.4]
[1764373430870,16.308864,137.79,137.73,7.93046875]
[1764373431074,3.54202611,137.77,137.74,3.2]
[1764373431309,3.54202611,137.78,137.74,11.12998891]
[1764373431769,26.0162417,137.78,137.75,0.67]
[1764373432287,0.66,137.77,137.74,11.12998891]
[1764373441190,0.66,137.77,137.74,71.80998891]
[1764373441191,7.91851146,137.77,137.74,71.80998891]
[1764373441989,3.54202611,137.76,137.74,63.88]
[1764373442291,3.54202611,137.75,137.74,63.88]
[1764373442479,4.20202611,137.75,137.74,63.88]
[1764373442680,0.66,137.75,137.74,63.88]
[1764373442875,4.20202611,137.75,137.74,63.88]
[1764373443300,11.46155424,137.75,137.74,63.88]
[1764373444483,11.46155424,137.75,137.74,60.68]
[1764373446400,4.20202611,137.75,137.74,60.68]
[1764373446797,11.46155424,137.75,137.74,60.68]
[1764373447275,33.27894269,137.75,137.74,60.68]
[1764373447786,11.48119101,137.76,137.74,60.68]
[1764373448183,0.68,137.75,137.74,60.68]
[1764373452705,0.68,137.75,137.74,63.88]
[1764373453709,7.93952813,137.75,137.74,63.88]
[1764373456888,0.68,137.75,137.74,63.88]
[1764373458419,7.93952813,137.75,137.74,63.88]
[1764373475714,11.48155424,137.75,137.74,60.68]
[1764373476116,33.30052947,137.75,137.74,60.68]
[1764373481628,29.75850336,137.75,137.74,60.68]
[1764373483528,7.93952813,137.75,137.74,60.68]
[1764373484319,29.75850336,137.75,137.74,60.68]
[1764373487229,32.02818902,137.75,137.74,60.68]
[1764373491918,32.02818902,137.75,137.72,3.2]
[1764373491919,8.80994492,137.74,137.72,60.68]
[1764373492231,2.91968566,137.73,137.7,3.2]
[1764373492429,0.65,137.72,137.7,3.2]
[1764373493131,22.47373695,137.72,137.7,3.2]
[1764373493510,0.65,137.72,137.7,3.2]
[1764373494533,7.91132442,137.72,137.7,3.2]
[1764373497528,7.91132442,137.72,137.7,63.88]
[1764373500437,0.65,137.71,137.7,63.88]
[1764373501344,0.65,137.71,137.69,60.68]
[1764373503525,7.91207485,137.71,137.69,60.68]
[1764373504034,29.7373995,137.71,137.69,60.68]
[1764373504341,7.91207485,137.71,137.69,60.68]
[1764373505136,29.7373995,137.71,137.69,60.68]
[1764373506143,7.91207485,137.71,137.69,60.68]
[1764373506441,29.7373995,137.71,137.69,60.68]
[1764373507029,7.91207485,137.71,137.69,60.68]
[1764373507743,7.91207485,137.71,137.69,63.88]
[1764373510444,0.65,137.71,137.69,63.88]
[1764373516748,7.91167824,137.71,137.69,63.88]
[1764373519651,2.93968566,137.7,137.69,60.68]
[1764373520224,24.76659824,137.7,137.69,60.68]
[1764373521853,29.7590767,137.7,137.69,60.68]
[1764373537068,29.7590767,137.7,137.69,60.18]
[1764373538876,7.93216412,137.7,137.69,60.18]
[1764373540478,10.20184978,137.7,137.65,0.82]
[1764373540783,7.26374664,137.67,137.65,0.82]
[1764373542552,7.26374664,137.67,137.66,3.2]
[1764373544476,10.22316049,137.68,137.66,3.2]
[1764373545751,10.22316049,137.68,137.66,64.6]
[1764373546283,32.05324962,137.68,137.66,64.6]
[1764373547276,32.05324962,137.68,137.66,61.4]
[1764373548389,10.22316049,137.68,137.66,61.4]
[1764373548590,7.95347483,137.68,137.66,61.4]
[1764373550092,32.64291203,137.69,137.66,61.4]
[1764373550278,7.26289145,137.69,137.67,3.92]
[1764373550695,10.8128229,137.69,137.67,3.92]
[1764373551089,10.8128229,137.69,137.67,65.32]
[1764373551414,11.5028229,137.69,137.67,65.32]
[1764373552169,11.5028229,137.69,137.67,64.6]
[1764373553093,11.5028229,137.69,137.67,65.32]
[1764373554695,10.8128229,137.69,137.67,65.32]
[1764373554887,11.5028229,137.69,137.67,65.32]
[1764373555193,7.26289145,137.69,137.67,65.32]
[1764373555594,7.95289145,137.69,137.67,64.6]
[1764373556682,11.5028229,137.69,137.67,64.6]
[1764373564707,7.26289145,137.69,137.67,64.6]
[1764373564890,25.41669455,137.71,137.68,0.72]
[1764373565088,26.10669455,137.71,137.69,3.2]
[1764373565294,29.656626,137.71,137.69,3.2]
[1764373565503,11.50199997,137.71,137.69,3.2]
[1764373568782,11.50199997,137.71,137.69,64.6]
[1764373574112,3.54993145,137.71,137.69,65.27]
[1764373574315,31.60491954,137.72,137.69,65.27]
[1764373574502,53.43024419,137.72,137.69,65.27]
[1764373574698,31.60491954,137.72,137.69,65.27]
[1764373574911,15.29605554,137.72,137.69,65.27]
[1764373575609,0.72,137.71,137.69,65.27]
[1764373575807,7.98164019,137.71,137.69,64.6]
[1764373577118,7.26164019,137.71,137.69,65.26]
[1764373578124,7.98164019,137.71,137.69,65.26]
[1764373578299,0.72,137.71,137.69,65.26]
[1764373580518,14.60581176,137.72,137.69,71.862644]
[1764373580725,7.26120631,137.72,137.7,0.66]
[1764373583938,32.617728,137.74,137.71,3.2]
[1764373583939,44.14813653,137.74,137.71,3.2]
[1764373584110,27.83927253,137.74,137.71,65.26]
[1764373587621,0.72,137.73,137.71,65.26]
[1764373587949,0.72,137.73,137.71,64.6]
[1764373589950,11.53099227,137.73,137.71,64.6]
[1764373590551,0.72,137.72,137.71,64.6]
[1764373591645,4.26993145,137.72,137.71,64.6]
[1764373591947,11.53104094,137.72,137.71,64.6]
[1764373592248,11.53104094,137.72,137.71,61.4]
[1764373593251,29.68381468,137.72,137.69,64.6]
[1764373593551,3.54993145,137.7,137.69,61.4]
[1764373594045,11.53209557,137.7,137.69,61.4]
[1764373594240,11.53209557,137.7,137.67,64.6]
[1764373594445,4.26993145,137.69,137.67,64.6]
[1764373595254,11.53300141,137.69,137.67,64.6]
[1764373596043,10.81300141,137.69,137.67,64.6]
[1764373596348,0.68,137.68,137.65,62.21]
[1764373596525,3.54993145,137.66,137.65,0.1]
[1764373596932,4.22993145,137.66,137.65,0.1]
[1764373597839,11.49420574,137.66,137.65,0.1]
[1764373600532,7.94427429,137.66,137.65,0.1]
[1764373604054,0.68,137.66,137.65,0.1]
[1764373604254,30.51572646,137.7,137.65,0.81]
[1764373604445,0.68,137.69,137.66,3.2]
[1764373605357,7.94269155,137.69,137.66,3.2]
[1764373605757,7.94353984,137.68,137.66,3.2]
[1764373606757,7.94353984,137.68,137.66,3.91]
[1764373606937,7.94353984,137.68,137.66,3.2]
[1764373607559,7.94353984,137.68,137.66,64.6]
[1764373607850,7.26269155,137.69,137.66,64.6]
[1764373608059,7.94269155,137.69,137.66,65.31]
[1764373611438,7.94269155,137.69,137.66,64.6]
[1764373611638,7.94269155,137.69,137.66,65.31]
[1764373613839,27.69124137,137.69,137.66,3.2]
[1764373614054,2.27182094,137.67,137.65,61.5]
[1764373614360,9.53600418,137.67,137.65,61.5]
[1764373614664,0.68,137.66,137.65,61.5]
[1764373615350,2.95182094,137.66,137.65,61.5]
[1764373616260,26.52495923,137.66,137.65,61.5]
[1764373616479,26.52495923,137.66,137.65,0.1]
[1764373620347,38.53490415,137.66,137.65,0.1]
[1764373621354,41.44664209,137.66,137.65,0.1]
[1764373624186,25.40313206,137.63,137.62,0.1]
[1764373624395,30.874953,137.63,137.62,0.1]
[1764373624691,31.554953,137.63,137.62,0.1]
[1764373624883,34.46753901,137.63,137.62,0.1]
[1764373625251,44.00521768,137.63,137.62,1e-08]
[1764373625858,9.48994492,137.62,137.61,1e-08]
[1764373626054,14.0335868,137.62,137.61,1e-08]
[1764373627290,21.29997249,137.62,137.61,1e-08]
[1764373630982,25.40313206,137.59,137.58,1e-08]
[1764373631280,19.35458539,137.58,137.57,1e-08]
[1764373631487,25.11072947,137.58,137.57,1e-08]
[1764373632891,32.37922779,137.58,137.57,1e-08]
[1764373634473,35.29287458,137.58,137.57,1e-08]
[1764373644989,36.82033009,137.58,137.57,1e-08]
[1764373645196,39.09215103,137.58,137.57,1e-08]
[1764373648405,35.89215103,137.58,137.57,1e-08]
[1764373648706,39.09215103,137.58,137.57,1e-08]
[1764373669820,39.09215103,137.58,137.57,0.69000001]
[1764373669821,13.33959571,137.58,137.57,0.69000001]
[1764373670326,11.06777477,137.58,137.57,0.69000001]
[1764373672006,14.62304501,137.58,137.57,0.69000001]
[1764373677133,3.79927645,137.58,137.57,0.69000001]
[1764373677328,10.82324304,137.59,137.57,0.69000001]
[1764373679113,7.26759552,137.6,137.57,0.69000001]
[1764373679331,10.82286576,137.6,137.57,0.69000001]
[1764373679843,7.26759552,137.6,137.57,0.69000001]
[1764373680009,14.62042969,137.61,137.57,69.35884695]
[1764373680535,3.55527024,137.6,137.58,0.69]
[1764373681212,10.82273481,137.6,137.58,62.09]
[1764373681418,7.26746457,137.6,137.58,62.09]
[1764373681638,7.26746457,137.6,137.59,0.69]
[1764373681934,10.82273481,137.6,137.59,0.69]
[1764373684623,7.26746457,137.6,137.59,0.69]
[1764373696034,10.82233902,137.61,137.59,0.69]
[1764373696550,10.82233902,137.61,137.59,62.09]
[1764373697046,7.26706878,137.61,137.6,0.66]
[1764373697343,16.308864,137.62,137.6,0.66]
[1764373697344,11.06354697,137.63,137.6,0.66]
[1764373697528,3.79744057,137.63,137.6,0.66]
[1764373697732,3.79744057,137.63,137.61,3.2]
[1764373697937,7.26565082,137.64,137.61,3.2]
[1764373698133,10.82092106,137.64,137.62,0.66]
[1764373698537,11.51092106,137.64,137.61,3.86]
[1764373699753,10.82144964,137.63,137.61,3.86]
[1764373701060,7.2661794,137.63,137.61,3.86]
[1764373701857,7.2661794,137.63,137.62,0.66]
[1764373702746,7.2661794,137.63,137.61,3.86]
[1764373703861,7.2661794,137.63,137.61,3.2]
[1764373704047,7.2661794,137.63,137.62,0.66]
[1764373705148,3.55527024,137.65,137.62,0.66]
[1764373705743,8.04189087,137.66,137.62,0.66]
[1764373705939,7.2649673,137.65,137.62,0.66]
[1764373706141,7.26438764,137.66,137.62,72.88129368]
[1764373706646,7.26438764,137.66,137.63,0.66]
[1764373707263,7.26374664,137.67,137.64,3.2]
[1764373707651,25.84275776,137.69,137.65,0.66]
[1764373707652,29.21595741,137.69,137.65,0.66]
[1764373709343,32.77122765,137.69,137.65,0.66]
[1764373710066,14.61429774,137.69,137.65,0.66]
[1764373710266,14.61429774,137.69,137.65,7.92474337]
[1764373710567,14.61429774,137.69,137.66,0.66]
[1764373712365,15.30429774,137.69,137.66,0.66]
[1764373713768,14.61429774,137.69,137.66,0.66]
[1764373714076,11.0590275,137.69,137.66,0.66]
[1764373715246,14.61429774,137.69,137.64,10.46510016]
[1764373715449,4.26527024,137.68,137.64,11.13510016]
[1764373715642,4.26527024,137.68,137.64,72.53510016]
[1764373715845,0.71,137.67,137.64,72.53510016]
[1764373716267,0.71,137.67,137.64,71.86510016]
[1764373716469,0.71,137.67,137.65,0.67]
[1764373718772,3.55527024,137.66,137.64,61.4]
[1764373718977,3.55527024,137.65,137.61,11.13681932]
[1764373719155,3.55527024,137.65,137.61,72.53681932]
[1764373719469,4.26527024,137.65,137.62,0.67]
[1764373719772,11.53008705,137.65,137.62,0.67]
[1764373721258,11.53008705,137.65,137.62,7.93635407]
[1764373721975,7.97481681,137.65,137.62,7.93635407]
[1764373723855,7.97481681,137.65,137.62,69.33635407]
[1764373724061,18.1593666,137.66,137.63,4.22527024]
[1764373724352,7.26422908,137.67,137.64,7.42527024]
[1764373724675,11.76903926,137.69,137.65,4.22527024]
[1764373725178,33.59912839,137.69,137.65,3.55527024]
[1764373725374,33.59912839,137.69,137.66,0.67]
[1764373725977,11.76903926,137.69,137.66,0.67]
[1764373726175,15.3243095,137.69,137.66,0.67]
[1764373728073,3.79582785,137.69,137.67,3.2]
[1764373728375,7.2623608,137.7,137.67,3.2]
[1764373728578,7.9723608,137.7,137.67,3.87]
[1764373730776,0.71,137.69,137.66,0.67]
[1764373731074,0.71,137.69,137.67,3.2]
[1764373731867,7.26321905,137.68,137.67,3.2]
[1764373735074,7.26321905,137.68,137.67,64.6]
[1764373738067,7.97321905,137.68,137.67,64.6]
[1764373738468,7.26321905,137.68,137.67,64.6]
[1764373740992,7.97321905,137.68,137.67,64.6]
[1764373741596,7.97321905,137.68,137.67,61.4]
[1764373746672,10.24435366,137.68,137.67,61.4]
[1764373746990,50.23407906,137.68,137.64,64.6]
[1764373747190,0.67,137.67,137.64,64.6]
[1764373747491,0.67,137.67,137.64,65.28]
[1764373747689,22.50167776,137.67,137.64,65.28]
[1764373747896,0.67,137.67,137.64,65.28]
[1764373748101,7.26427429,137.66,137.64,65.28]
[1764373748800,7.26427429,137.66,137.64,67.55113461]
[1764373751696,7.26427429,137.66,137.64,65.28]
[1764373753601,29.09529909,137.68,137.65,0.68]
[1764373753806,0.67,137.67,137.64,65.28]
[1764373754014,0.67,137.67,137.64,67.55113461]
[1764373754508,0.67,137.67,137.64,66.87113461]
[1764373754683,0.67,137.67,137.64,67.55113461]
[1764373754884,0.67,137.67,137.64,65.28]
[1764373755084,0.67,137.67,137.64,67.55113461]
[1764373757310,7.9339668,137.67,137.64,67.55113461]
[1764373758408,2.27113461,137.65,137.6,61.4]
[1764373758610,2.27113461,137.63,137.6,61.4]
[1764373758910,16.998864,137.64,137.6,62.1]
[1764373759110,0.69,137.63,137.6,62.1]
[1764373759305,16.308864,137.62,137.6,62.1]
[1764373760314,16.308864,137.62,137.61,3.2]
[1764373761112,16.998864,137.62,137.61,3.2]
[1764373761293,16.308864,137.62,137.61,3.2]
[1764373761492,16.998864,137.62,137.61,3.2]
[1764373764310,16.308864,137.62,137.61,3.2]
[1764373764812,16.308864,137.62,137.61,64.6]
[1764373767695,7.95610395,137.63,137.61,64.6]
[1764373767892,24.26496795,137.63,137.61,64.6]
[1764373768293,7.95610395,137.63,137.61,64.6]
[1764373768594,29.79254897,137.63,137.61,64.6]
[1764373778128,0.71,137.62,137.61,64.6]
[1764373778624,22.54803457,137.62,137.59,64.6]
[1764373778918,2.27113461,137.61,137.57,61.40000001]
[1764373779101,2.98113461,137.61,137.57,64.60000001]
[1764373779303,0.71,137.6,137.57,64.60000001]
[1764373780317,7.26797005,137.59,137.57,64.60000001]
[1764373780795,7.97797005,137.59,137.57,64.60000001]
[1764373785703,7.26744186,137.6,137.57,64.60000001]
[1764373785920,7.26744186,137.6,137.57,65.29000001]
[1764373786424,7.97744186,137.6,137.57,65.29000001]
[1764373787128,7.26744186,137.6,137.57,71.86898386]
[1764373787312,7.26744186,137.6,137.58,0.69]
[1764373787512,7.26744186,137.6,137.59,3.2]
[1764373787718,7.26691374,137.61,137.59,3.2]
[1764373787902,7.26691374,137.61,137.59,3.89]
[1764373788500,7.97691374,137.61,137.59,3.2]
[1764373790138,7.26663138,137.62,137.59,3.89]
[1764373790312,7.97663138,137.62,137.59,3.89]
[1764373791114,11.77254659,137.64,137.6,0.69]
[1764373791415,0.71,137.63,137.61,3.2]
[1764373794538,0.71,137.63,137.61,64.6]
[1764373796434,7.97586732,137.63,137.61,64.6]
[1764373799350,7.26586732,137.63,137.61,64.6]
[1764373799638,7.97586732,137.63,137.61,64.6]
[1764373804841,7.26586732,137.63,137.61,65.29]
[1764373805044,20.10541176,137.66,137.62,4.24206294]
[1764373805339,2.19999999,137.72,137.65,3.55206294]
[1764373805340,25.38056368,137.71,137.65,3.55206294]
[1764373805543,4.26206294,137.71,137.66,6.75206294]
[1764373805846,0.71,137.7,137.66,6.75206294]
[1764373806018,0.71,137.7,137.67,0.67]
[1764373806214,0.71,137.7,137.66,6.75206294]
[1764373806420,7.97239301,137.7,137.67,0.67]
[1764373806820,7.26177793,137.71,137.68,3.55206294]
[1764373807038,7.97177793,137.71,137.69,3.2]
[1764373807820,0.71,137.7,137.69,3.2]
[1764373809042,7.97177793,137.71,137.69,3.2]
[1764373811128,0.71,137.7,137.69,3.2]
[1764373811944,7.97177793,137.71,137.69,3.2]
[1764373812345,7.97177793,137.71,137.69,64.6]
[1764373812544,0.71,137.71,137.69,64.6]
[1764373815745,0.2,137.72,137.69,65.27]
[1764373815942,0.2,137.72,137.69,68.82206294]
[1764373816747,7.46115776,137.72,137.69,68.82206294]
[1764373816942,8.17115776,137.72,137.69,68.82206294]
[1764373817242,8.17115776,137.72,137.69,65.27]
[1764373819550,0.91,137.72,137.69,72.53268552]
[1764373820525,8.17124734,137.72,137.69,72.53268552]
[1764373821675,0.91,137.72,137.69,72.53268552]
[1764373825839,4.25206294,137.71,137.69,61.4]
[1764373826235,0.7,137.7,137.69,61.4]
[1764373836745,7.96216412,137.7,137.69,61.4]
[1764373837470,7.96216412,137.7,137.67,61.4]
[1764373837471,11.51422706,137.7,137.67,61.4]
[1764373837670,4.24206294,137.69,137.67,61.4]
[1764373837869,0.69,137.68,137.67,61.4]
[1764373848077,0.69,137.69,137.67,61.4]
[1764373849468,7.95302244,137.69,137.67,61.4]
[1764373853882,7.26302244,137.69,137.67,61.4]
[1764373854066,0.69,137.68,137.67,61.4]
[1764373854588,3.79497696,137.71,137.67,71.59535875]
[1764373854772,0.2,137.72,137.68,6.13162407]
[1764373854773,0.89,137.72,137.68,6.13162407]
[1764373855160,7.46137854,137.72,137.68,6.13162407]
[1764373855472,0.69,137.71,137.69,0.66]
[1764373856378,0.69,137.71,137.68,11.12315841]
[1764373856578,0.69,137.71,137.68,3.86]
[1764373857583,7.95181525,137.71,137.68,11.12319608]
[1764373859691,0.69,137.7,137.68,10.46319608]
[1764373859891,0.69,137.7,137.68,72.52319608]
[1764373861668,0.69,137.7,137.68,71.86319608]
[1764373862070,0.69,137.7,137.68,72.52319608]
[1764373863586,0.69,137.7,137.68,71.86319608]
[1764373863981,7.26181525,137.71,137.68,72.52319608]
[1764373864182,0.69,137.7,137.68,72.52319608]
[1764373869901,0.69,137.7,137.68,71.86319608]
[1764373870104,0.69,137.7,137.68,64.6]
[1764373874103,7.95222659,137.7,137.68,64.6]
[1764373874801,2.96162407,137.69,137.68,61.4]
[1764373876407,10.22431562,137.69,137.68,61.4]
[1764373877290,7.95269155,137.69,137.68,61.4]
[1764373877690,7.95269155,137.69,137.65,64.6]
[1764373877888,0.66,137.68,137.65,64.6]
[1764373879110,7.26374664,137.67,137.65,64.6]
[1764373879588,7.92374664,137.67,137.65,64.6]
[1764373883714,0.66,137.67,137.65,64.6]
[1764373884909,10.19564786,137.67,137.65,64.6]
[1764373885110,7.92402379,137.67,137.65,64.6]
[1764373885294,0.66,137.66,137.65,64.6]
[1764373887610,7.92427429,137.66,137.65,3.2]
[1764373889013,7.92427429,137.66,137.63,65.32]
[1764373892915,0.66,137.65,137.63,65.32]
[1764373893095,7.92427429,137.66,137.63,65.32]
[1764373894713,7.26321905,137.68,137.63,71.86573727]
[1764373894919,0.66,137.67,137.64,0.72]
[1764373895220,0.66,137.67,137.63,65.32]
[1764373896096,7.26427429,137.66,137.63,65.32]
[1764373896608,7.92427429,137.66,137.63,65.32]
[1764373903032,7.92427429,137.66,137.63,83.47804764]
[1764373906723,7.92427429,137.66,137.63,65.32]
[1764373908007,7.92427429,137.66,137.63,83.47804764]
[1764373908208,0.66,137.65,137.63,82.75804764]
[1764373908415,0.66,137.65,137.63,64.6]
[1764373909240,7.92427429,137.66,137.63,65.3]
[1764373909631,7.92427429,137.66,137.63,85.73167167]
[1764373915628,0.66,137.65,137.63,64.6]
[1764373915825,3.5509826,137.64,137.63,64.6]
[1764373916333,11.47631244,137.64,137.63,64.6]
[1764373917229,11.47631244,137.64,137.63,61.4]
[1764373917735,7.92532984,137.64,137.63,61.4]
[1764373921626,11.47631244,137.64,137.63,61.4]
[1764373921937,7.92532984,137.64,137.63,61.4]
[1764373922129,11.47631244,137.64,137.63,61.4]
[1764373924726,21.71166834,137.66,137.63,62.1]
[1764373924931,18.82068574,137.66,137.63,62.1]
[1764373925145,18.16068574,137.66,137.64,0.69]
[1764373925836,18.83068574,137.66,137.63,64.6]
[1764373926037,18.83068574,137.66,137.63,65.29]
[1764373926337,7.26509579,137.65,137.63,65.29]
[1764373927551,0.67,137.65,137.63,64.6]
[1764373928531,7.93492263,137.65,137.63,64.6]
[1764373957082,0.67,137.67,137.64,0.67]
[1764373957253,4.2209826,137.67,137.64,0.67]
[1764373958075,3.5509826,137.67,137.64,0.67]
[1764373958254,0.67,137.66,137.64,0.67]
[1764373958873,10.81507615,137.67,137.64,0.67]
[1764373959077,11.48507615,137.67,137.64,0.67]
[1764373960077,0.67,137.67,137.64,7.93513363]
[1764373960955,0.67,137.67,137.64,91.16522276]
[1764373961358,3.5509826,137.66,137.64,90.49522276]
[1764373961564,4.2209826,137.67,137.64,91.16522276]
[1764373965376,0.67,137.66,137.64,91.16522276]
[1764373965970,0.67,137.66,137.64,90.49522276]
[1764373966167,14.25956761,137.68,137.64,90.49522276]
[1764373966369,0.67,137.67,137.64,91.16522276]
[1764373967268,4.2209826,137.67,137.64,91.16522276]
[1764373969283,0.67,137.66,137.64,90.49522276]
[1764373970587,0.67,137.66,137.64,61.4]
[1764373970787,11.48532991,137.66,137.64,61.4]
[1764373971169,0.67,137.65,137.64,61.4]
[1764373974296,7.93480203,137.65,137.64,61.4]
[1764373975893,7.93480203,137.65,137.63,3.2]
[1764373976071,0.67,137.64,137.63,3.2]
[1764373979188,7.93480203,137.65,137.63,3.2]
[1764373980195,0.67,137.64,137.62,7.26480203]
[1764373980497,2.94312317,137.64,137.61,10.46688551]
[1764373980789,2.94312317,137.64,137.61,71.86688551]
[1764373980980,0.67,137.63,137.61,71.86688551]
[1764373981177,0.67,137.63,137.61,64.6]
[1764373981384,2.94312317,137.63,137.61,64.6]
[1764373981778,0.67,137.63,137.61,64.6]
[1764373982186,9.5389809,137.63,137.61,64.6]
[1764373982385,9.5389809,137.63,137.61,3.2]
[1764373982386,2.94312317,137.62,137.61,3.2]
[1764373982897,2.94312317,137.62,137.6,61.4]
[1764373983197,0.67,137.61,137.59,3.2]
[1764373985186,7.93714884,137.61,137.59,3.2]
[1764373986191,7.26714884,137.61,137.59,3.2]
[1764373986692,7.93714884,137.61,137.59,3.2]
[1764373987173,7.26714884,137.61,137.59,3.88]
[1764373988996,7.93714884,137.61,137.59,3.2]
[1764373990404,7.93714884,137.61,137.59,3.88]
[1764373990585,7.26714884,137.61,137.59,3.88]
[1764373993615,7.26714884,137.61,137.59,65.28]
[1764373995891,2.93312317,137.64,137.6,0.69]
[1764373996091,0.66,137.63,137.61,3.2]
[1764373997308,7.92610663,137.63,137.61,3.2]
[1764373997911,10.1992298,137.63,137.61,3.2]
[1764373999110,7.92610663,137.63,137.61,3.2]
[1764373999313,10.1992298,137.63,137.61,3.2]
[1764373999518,10.1992298,137.63,137.61,64.6]
[1764374001625,2.93312317,137.62,137.61,64.6]
[1764374001916,2.27312317,137.62,137.61,64.6]
[1764374002093,10.1992298,137.63,137.61,64.6]
[1764374002522,0.66,137.62,137.61,64.6]
[1764374003225,10.1992298,137.63,137.61,64.6]
[1764374004719,0.66,137.62,137.61,64.6]
[1764374005316,9.5392298,137.63,137.61,64.6]
[1764374005511,10.1992298,137.63,137.61,64.6]
[1764374005813,0.66,137.62,137.61,64.6]